fUSD/lending_fUSD_20260512
["ID","MTS","AMOUNT","RATE_DAILY","PERIOD"]
[422083683,1778559034000,-150.0,0.00019746,4]
[422083685,1778559034000,-150.0,0.00019833,4]
[422083684,1778559034000,-150.0,0.00019789,4]
[422083682,1778559034000,-150.0,0.00019702,4]
[422083680,1778559034000,-150.0,0.00019659,4]
[422083677,1778559034000,-150.0,0.00019529,2]
[422083678,1778559034000,-150.0,0.00019572,4]
[422083679,1778559034000,-150.0,0.00019616,4]
[422083691,1778559034000,-297.99419354,0.000199,2]
[422083713,1778559038000,-97.94708487,0.00019973,2]
[422083714,1778559038000,-402.05291513,0.00019973,2]
[422083712,1778559038000,-201.07212832,0.00019973,2]
[422083710,1778559038000,-5.35122487,0.00019919,4]
[422083707,1778559038000,-723.52773866,0.000199,2]
[422083709,1778559038000,-144.64877513,0.00019919,4]
[422083706,1778559038000,-309.86242947,0.000199,2]
[422083705,1778559038000,-150.0,0.00016267,2]
[422083715,1778559038000,-161.2802676,0.00019973,2]
[422083708,1778559038000,-381.85466621,0.000199,2]
[422083716,1778559038000,-150.0,0.00019973,2]
[422083711,1778559038000,-150.0,0.00019963,4]
[422083718,1778559038000,-500.0,0.00019973,2]
[422083717,1778559038000,-500.0,0.00019973,2]
[422083727,1778559038000,-500.0,0.00019973,2]
[422083728,1778559038000,-500.0,0.00019973,2]
[422083724,1778559038000,-14.20352387,0.00019973,2]
[422083726,1778559038000,-500.0,0.00019973,2]
[422083722,1778559038000,-501.78195346,0.00019973,2]
[422083729,1778559038000,-167.4679257,0.00019973,2]
[422083723,1778559038000,-486.25650472,0.00019973,2]
[422083721,1778559038000,-167.58015488,0.00019973,2]
[422083720,1778559038000,-500.95821623,0.00019973,2]
[422083719,1778559038000,-500.0,0.00019973,2]
[422083725,1778559038000,-318.32855043,0.00019973,2]
[422083773,1778559039000,-500.0,0.00019999,2]
[422083771,1778559039000,-500.0,0.00019999,2]
[422083769,1778559039000,-500.0,0.00019999,2]
[422083764,1778559039000,-500.0,0.00019999,2]
[422083761,1778559039000,-500.0,0.00019999,2]
[422083760,1778559039000,-500.0,0.00019999,2]
[422083758,1778559039000,-500.0,0.00019999,2]
[422083756,1778559039000,-500.0,0.00019999,2]
[422083766,1778559039000,-500.0,0.00019999,2]
[422083763,1778559039000,-500.0,0.00019999,2]
[422083770,1778559039000,-500.0,0.00019999,2]
[422083776,1778559039000,-500.0,0.00019999,2]
[422083768,1778559039000,-500.0,0.00019999,2]
[422083767,1778559039000,-500.0,0.00019999,2]
[422083772,1778559039000,-500.0,0.00019999,2]
[422083774,1778559039000,-500.0,0.00019999,2]
[422083755,1778559039000,-500.0,0.00019999,2]
[422083778,1778559039000,-153.0,0.0002,2]
[422083777,1778559039000,-500.0,0.00019999,2]
[422083784,1778559039000,-31203.12323124,0.0002,30]
[422083775,1778559039000,-500.0,0.00019999,2]
[422083783,1778559039000,-818.0,0.0002,2]
[422083765,1778559039000,-500.0,0.00019999,2]
[422083753,1778559039000,-424.44564151,0.00019999,2]
[422083744,1778559039000,-500.0,0.00019999,2]
[422083752,1778559039000,-500.0,0.00019999,2]
[422083730,1778559039000,-332.5320743,0.00019973,2]
[422083733,1778559039000,-500.0,0.00019999,2]
[422083731,1778559039000,-500.0,0.00019973,2]
[422083734,1778559039000,-500.0,0.00019999,2]
[422083735,1778559039000,-500.0,0.00019999,2]
[422083736,1778559039000,-500.0,0.00019999,2]
[422083732,1778559039000,-150.0,0.00019994,4]
[422083739,1778559039000,-500.0,0.00019999,2]
[422083738,1778559039000,-500.0,0.00019999,2]
[422083737,1778559039000,-408.71873674,0.00019999,2]
[422083754,1778559039000,-500.0,0.00019999,2]
[422083740,1778559039000,-500.0,0.00019999,2]
[422083741,1778559039000,-500.0,0.00019999,2]
[422083743,1778559039000,-500.0,0.00019999,2]
[422083746,1778559039000,-500.0,0.00019999,2]
[422083745,1778559039000,-500.0,0.00019999,2]
[422083750,1778559039000,-500.0,0.00019999,2]
[422083749,1778559039000,-500.0,0.00019999,2]
[422083780,1778559039000,-152.0,0.0002,2]
[422083751,1778559039000,-500.0,0.00019999,2]
[422083747,1778559039000,-500.0,0.00019999,2]
[422083748,1778559039000,-500.0,0.00019999,2]
[422083742,1778559039000,-500.0,0.00019999,2]
[422083785,1778559039000,-409.97,0.0002,30]
[422083762,1778559039000,-500.0,0.00019999,2]
[422083781,1778559039000,-414.0,0.0002,2]
[422083823,1778559039000,-150.0,0.00020136,4]
[422083830,1778559039000,-150.0,0.00020252,4]
[422083827,1778559039000,-500.0,0.00020213,2]
[422083829,1778559039000,-150.0,0.00020252,4]
[422083832,1778559039000,-150.0,0.00020267,4]
[422083835,1778559039000,-150.0,0.0002031,4]
[422083837,1778559039000,-156.14,0.00020373,2]
[422083833,1778559039000,-204.003335,0.00020302,2]
[422083836,1778559039000,-150.0,0.00020353,4]
[422083839,1778559039000,-150.0,0.00020397,4]
[422083838,1778559039000,-646.5,0.00020381,2]
[422083834,1778559039000,-150.0,0.00020304,4]
[422083840,1778559039000,-200.0,0.00020428,2]
[422083842,1778559039000,-150.0,0.00020459,4]
[422083844,1778559039000,-261.912011,0.00020496,2]
[422083843,1778559039000,-150.0,0.00020484,4]
[422083846,1778559039000,-152.0,0.000205,2]
[422083850,1778559039000,-1000.0,0.00020521,2]
[422083847,1778559039000,-1002.22153914,0.00020521,2]
[422083845,1778559039000,-152.0,0.000205,2]
[422083848,1778559039000,-250.0,0.00020521,2]
[422083849,1778559039000,-1000.0,0.00020521,2]
[422083779,1778559039000,-154.0,0.0002,2]
[422083826,1778559039000,-2403.79,0.00020211,2]
[422083824,1778559039000,-150.0,0.00020149,4]
[422083841,1778559039000,-150.0,0.0002044,4]
[422083820,1778559039000,-150.0,0.00020006,4]
[422083828,1778559039000,-150.0,0.00020223,4]
[422083787,1778559039000,-336.22096291,0.0002,30]
[422083792,1778559039000,-3153.88746324,0.0002,30]
[422083794,1778559039000,-1358.36788851,0.0002,30]
[422083790,1778559039000,-498.0344358,0.0002,30]
[422083801,1778559039000,-405.74487,0.0002,30]
[422083796,1778559039000,-564.73111947,0.0002,30]
[422083804,1778559039000,-2019.17477445,0.0002,30]
[422083799,1778559039000,-364.71932713,0.0002,30]
[422083810,1778559039000,-26533.17456064,0.0002,30]
[422083807,1778559039000,-1094.0,0.0002,30]
[422083812,1778559039000,-80051.99274821,0.0002,30]
[422083786,1778559039000,-564.0886184,0.0002,30]
[422083814,1778559039000,-250.0,0.0002,2]
[422083815,1778559039000,-4649.21675323,0.0002,2]
[422083825,1778559039000,-150.0,0.0002018,4]
[422083831,1778559039000,-1436.09,0.00020261,2]
[422083821,1778559039000,-150.0,0.0002005,4]
[422083822,1778559039000,-150.0,0.00020093,4]
[422083816,1778559039000,-153.51488147,0.0002,2]
[422083819,1778559039000,-814.0,0.0002,2]
[422083818,1778559039000,-838.0,0.0002,2]
[422083817,1778559039000,-1185.0,0.0002,2]
[422083875,1778559040000,-501.20980551,0.00020914,2]
[422083889,1778559040000,-150.0,0.00021004,4]
[422083877,1778559040000,-150.0,0.00020917,4]
[422083881,1778559040000,-150.0,0.00020975,4]
[422083883,1778559040000,-153.0,0.00021,2]
[422083882,1778559040000,-150.0,0.00020975,4]
[422083884,1778559040000,-154.0,0.00021,2]
[422083887,1778559040000,-818.0,0.00021,2]
[422083879,1778559040000,-150.0,0.00020961,4]
[422083885,1778559040000,-152.0,0.00021,2]
[422083888,1778559040000,-250.0,0.00021,2]
[422083892,1778559040000,-350.0,0.00021068,2]
[422083890,1778559040000,-150.0,0.00021017,2]
[422083891,1778559040000,-150.0,0.00021048,4]
[422083893,1778559040000,-169.79022337,0.00021068,2]
[422083895,1778559040000,-1500.0,0.00021068,2]
[422083896,1778559040000,-500.85398403,0.00021068,2]
[422083894,1778559040000,-1500.0,0.00021068,2]
[422083898,1778559040000,-1500.0,0.00021068,2]
[422083897,1778559040000,-1500.0,0.00021068,2]
[422083899,1778559040000,-150.0,0.00021079,4]
[422083901,1778559040000,-150.0,0.00021134,4]
[422083878,1778559040000,-150.0,0.00020924,4]
[422083886,1778559040000,-414.0,0.00021,2]
[422083876,1778559040000,-500.0,0.00020914,2]
[422083851,1778559040000,-1000.0,0.00020521,2]
[422083874,1778559040000,-501.71906878,0.00020914,2]
[422083900,1778559040000,-150.0,0.00021091,4]
[422083853,1778559040000,-500.0,0.00020521,2]
[422083852,1778559040000,-1000.0,0.00020521,2]
[422083854,1778559040000,-1110.7460418,0.00020521,2]
[422083855,1778559040000,-1000.0,0.00020521,2]
[422083856,1778559040000,-1000.0,0.00020521,2]
[422083859,1778559040000,-150.0,0.0002057,4]
[422083858,1778559040000,-627.49,0.00020548,2]
[422083860,1778559040000,-158.5,0.00020613,2]
[422083857,1778559040000,-150.0,0.00020527,4]
[422083861,1778559040000,-150.0,0.00020614,4]
[422083863,1778559040000,-150.0,0.00020614,4]
[422083862,1778559040000,-150.0,0.00020614,4]
[422083865,1778559040000,-150.0,0.00020657,4]
[422083864,1778559040000,-150.0,0.00020614,4]
[422083867,1778559040000,-150.0,0.000207,4]
[422083866,1778559040000,-2195.1,0.00020672,2]
[422083868,1778559040000,-150.0,0.00020744,4]
[422083870,1778559040000,-150.0,0.00020787,4]
[422083871,1778559040000,-13408.04605855,0.00020802,2]
[422083869,1778559040000,-150.0,0.00020769,4]
[422083873,1778559040000,-150.0,0.00020874,4]
[422083872,1778559040000,-150.0,0.00020831,4]
[422083880,1778559040000,-276.95012029,0.00020961,4]
[422083903,1778559040000,-150.0,0.00021221,4]
[422083930,1778559040000,-267.08582344,0.00021599,2]
[422083905,1778559040000,-150.0,0.00021265,4]
[422083928,1778559040000,-5000.0,0.00021599,2]
[422083929,1778559040000,-70831.6898,0.00021599,2]
[422083937,1778559040000,-2000.0,0.00021616,2]
[422083939,1778559040000,-150.79009377,0.00021673,2]
[422083935,1778559040000,-2006.52667117,0.00021616,2]
[422083941,1778559040000,-500.0,0.00021673,2]
[422083938,1778559040000,-150.0,0.00021655,4]
[422083940,1778559040000,-500.0,0.00021673,2]
[422083943,1778559040000,-289.63334435,0.00021689,2]
[422083942,1778559040000,-500.0,0.00021673,2]
[422083944,1778559040000,-154.3164136,0.0002169,2]
[422083945,1778559040000,-154.31641359,0.0002169,2]
[422083947,1778559040000,-152.38538152,0.00021699,4]
[422083955,1778559040000,-782.53,0.000217,2]
[422083950,1778559040000,-158.84105338,0.00021699,4]
[422083946,1778559040000,-500.0,0.00021698,2]
[422083951,1778559040000,-158.69225616,0.00021699,4]
[422083949,1778559040000,-150.0,0.00021699,4]
[422083948,1778559040000,-150.73208603,0.00021699,4]
[422083952,1778559040000,-150.0,0.00021699,4]
[422083953,1778559040000,-2500000.0,0.00021699,2]
[422083902,1778559040000,-150.0,0.00021178,4]
[422083954,1778559040000,-3500.0,0.000217,7]
[422083927,1778559040000,-520.868,0.00021599,2]
[422083934,1778559040000,-2000.0,0.00021616,2]
[422083936,1778559040000,-2000.0,0.00021616,2]
[422083932,1778559040000,-150.0,0.00021612,4]
[422083906,1778559040000,-185.26,0.00021273,2]
[422083908,1778559040000,-150.0,0.00021308,4]
[422083925,1778559040000,-150.0,0.00021544,4]
[422083904,1778559040000,-150.0,0.00021234,4]
[422083907,1778559040000,-1125.3,0.00021273,2]
[422083909,1778559040000,-150.0,0.00021337,4]
[422083911,1778559040000,-150.0,0.00021351,4]
[422083910,1778559040000,-150.0,0.00021337,4]
[422083912,1778559040000,-150.0,0.00021389,4]
[422083915,1778559040000,-150.0,0.00021438,4]
[422083914,1778559040000,-150.0,0.00021395,4]
[422083917,1778559040000,-243.75,0.0002146,2]
[422083913,1778559040000,-156.14,0.00021392,2]
[422083921,1778559040000,-360.80526486,0.000215,21]
[422083933,1778559040000,-450.0,0.00021616,2]
[422083916,1778559040000,-150.0,0.00021441,2]
[422083926,1778559040000,-150.0,0.00021568,4]
[422083920,1778559040000,-150.0,0.00021482,4]
[422083922,1778559040000,-1100.0,0.000215,7]
[422083931,1778559040000,-2300.0,0.000216,7]
[422083919,1778559040000,-20346.51,0.00021472,2]
[422083923,1778559040000,-162.27,0.00021505,2]
[422083918,1778559040000,-519.29639484,0.00021462,2]
[422083924,1778559040000,-150.0,0.00021525,4]
[422083993,1778559041000,-651.05929088,0.00022712,2]
[422083985,1778559041000,-928.89097521,0.00022221,2]
[422083988,1778559041000,-1000.0,0.00022321,2]
[422083986,1778559041000,-617.96406145,0.00022221,2]
[422083983,1778559041000,-503.94323449,0.00022164,2]
[422083987,1778559041000,-1000.0,0.00022221,2]
[422083994,1778559041000,-1493.59354438,0.00022712,2]
[422083990,1778559041000,-156.14,0.0002241,2]
[422083992,1778559041000,-280.79,0.00022691,2]
[422083989,1778559041000,-646.5,0.00022353,2]
[422083991,1778559041000,-1511.17,0.00022466,2]
[422084005,1778559041000,-250.0,0.00023,2]
[422084006,1778559041000,-49175.50621341,0.00023,2]
[422083995,1778559041000,-600.0,0.00022754,2]
[422083999,1778559041000,-1436.09,0.00022794,2]
[422083997,1778559041000,-1500.0,0.00022768,2]
[422083998,1778559041000,-166.66,0.00022772,30]
[422084001,1778559041000,-153.40085918,0.00023,2]
[422084000,1778559041000,-1500.0,0.00022868,2]
[422084004,1778559041000,-818.0,0.00023,2]
[422084002,1778559041000,-164.74173103,0.00023,2]
[422083984,1778559041000,-2500.0,0.00022164,2]
[422084003,1778559041000,-414.0,0.00023,2]
[422083996,1778559041000,-385.17,0.00022754,2]
[422083979,1778559041000,-5000.0,0.00022048,2]
[422083956,1778559041000,-500.0,0.00021773,2]
[422083976,1778559041000,-818.0,0.00022,2]
[422084007,1778559041000,-1001.91634798,0.00023014,2]
[422083957,1778559041000,-500.0,0.00021773,2]
[422083958,1778559041000,-151.0,0.00021796,2]
[422083960,1778559041000,-151.0,0.00021799,2]
[422083962,1778559041000,-151.0,0.00021799,2]
[422083961,1778559041000,-151.0,0.00021799,2]
[422083959,1778559041000,-598.30367606,0.00021799,2]
[422083970,1778559041000,-5900.0,0.000219,7]
[422083969,1778559041000,-508.81029755,0.00021899,2]
[422083963,1778559041000,-229.754449,0.00021799,2]
[422083968,1778559041000,-4700.0,0.000218,7]
[422083978,1778559041000,-250.0,0.00022,2]
[422083965,1778559041000,-1136.281255,0.00021799,2]
[422083967,1778559041000,-1136.281255,0.00021799,2]
[422083966,1778559041000,-1136.281255,0.00021799,2]
[422083972,1778559041000,-153.0,0.00022,2]
[422083973,1778559041000,-154.0,0.00022,2]
[422083981,1778559041000,-550.0,0.00022164,2]
[422083982,1778559041000,-503.36256891,0.00022164,2]
[422083971,1778559041000,-4007.84,0.00021925,30]
[422083975,1778559041000,-414.0,0.00022,2]
[422083980,1778559041000,-9637.63084045,0.00022122,2]
[422083974,1778559041000,-161.81095167,0.00022,2]
[422083977,1778559041000,-6984.16,0.00022,30]
[422083964,1778559041000,-1136.281255,0.00021799,2]
[422084008,1778559041000,-171.597063,0.00023116,14]
[422084034,1778559041000,-195.16732432,0.00023823,2]
[422084012,1778559041000,-170.35746035,0.00023308,2]
[422084038,1778559041000,-10000.0,0.00023964,2]
[422084043,1778559041000,-250.0,0.00024,2]
[422084042,1778559041000,-818.0,0.00024,2]
[422084048,1778559041000,-190.16,0.00024174,2]
[422084046,1778559041000,-500.0,0.00024173,2]
[422084047,1778559041000,-502.82280248,0.00024173,2]
[422084049,1778559041000,-923.92,0.00024174,2]
[422084050,1778559041000,-393.7128656,0.00024184,2]
[422084057,1778559041000,-151.0,0.00024655,7]
[422084052,1778559041000,-646.5,0.00024324,2]
[422084056,1778559041000,-385.17,0.00024504,2]
[422084036,1778559041000,-1927.75419801,0.00023885,2]
[422084053,1778559041000,-9637.63084045,0.00024344,2]
[422084055,1778559041000,-600.0,0.00024504,2]
[422084054,1778559041000,-503.0,0.00024397,2]
[422084059,1778559041000,-198.62,0.00024658,2]
[422084058,1778559041000,-153.69931528,0.00024658,2]
[422084063,1778559041000,-166.66,0.00024688,2]
[422084061,1778559041000,-166.78,0.00024658,2]
[422084064,1778559041000,-166.66,0.00024689,30]
[422084066,1778559041000,-1000.0,0.00024721,2]
[422084062,1778559041000,-167.96,0.00024658,2]
[422084060,1778559041000,-284.23,0.00024658,2]
[422084065,1778559041000,-782.53,0.000247,7]
[422084051,1778559041000,-166.66,0.0002421,30]
[422084040,1778559041000,-152.99,0.00023991,2]
[422084009,1778559041000,-166.66,0.00023159,2]
[422084045,1778559041000,-500.0,0.00024173,2]
[422084041,1778559041000,-414.0,0.00024,2]
[422084011,1778559041000,-19107.03333196,0.00023268,2]
[422084010,1778559041000,-166.66,0.00023251,30]
[422084014,1778559041000,-1577.54,0.00023368,2]
[422084015,1778559041000,-520.09,0.00023368,2]
[422084013,1778559041000,-1501.43213113,0.00023316,2]
[422084018,1778559041000,-4142.47,0.00023368,2]
[422084017,1778559041000,-150.99,0.00023368,2]
[422084020,1778559041000,-7647.87,0.00023368,2]
[422084019,1778559041000,-3010.86,0.00023368,2]
[422084023,1778559041000,-4999.99,0.00023368,2]
[422084027,1778559041000,-720.05,0.00023368,2]
[422084016,1778559041000,-7011.61,0.00023368,2]
[422084028,1778559041000,-9999.99,0.00023368,2]
[422084033,1778559041000,-166.66,0.0002373,30]
[422084025,1778559041000,-9999.99,0.00023368,2]
[422084035,1778559041000,-3168.57,0.0002385,60]
[422084039,1778559041000,-13408.04605855,0.00023985,2]
[422084044,1778559041000,-243.75,0.00024142,2]
[422084037,1778559041000,-166.66,0.00023923,2]
[422084032,1778559041000,-150.0,0.00023585,2]
[422084031,1778559041000,-1710.98529741,0.00023416,2]
[422084030,1778559041000,-3481.83,0.00023368,2]
[422084024,1778559041000,-499.99,0.00023368,2]
[422084029,1778559041000,-299.99,0.00023368,7]
[422084107,1778559042000,-2648.49,0.00026067,2]
[422084100,1778559042000,-190.16,0.00025786,2]
[422084110,1778559042000,-2649.45,0.00026094,7]
[422084102,1778559042000,-1500.0,0.00025856,2]
[422084105,1778559042000,-284.23,0.00025984,2]
[422084103,1778559042000,-477.88,0.00025886,2]
[422084106,1778559042000,-774.49450725,0.00026,2]
[422084108,1778559042000,-2649.45,0.00026068,2]
[422084109,1778559042000,-2648.49,0.00026093,7]
[422084099,1778559042000,-1125.3,0.00025786,2]
[422084112,1778559042000,-155.66,0.00026103,2]
[422084104,1778559042000,-265.9822,0.00025943,2]
[422084113,1778559042000,-2648.49,0.0002612,2]
[422084123,1778559042000,-2648.49,0.000262,7]
[422084114,1778559042000,-2649.45,0.00026121,2]
[422084116,1778559042000,-2648.49,0.00026147,2]
[422084115,1778559042000,-189.48,0.00026129,2]
[422084119,1778559042000,-501.92255243,0.00026173,2]
[422084121,1778559042000,-2648.49,0.00026174,7]
[422084117,1778559042000,-2649.45,0.00026148,2]
[422084120,1778559042000,-2649.45,0.00026174,7]
[422084118,1778559042000,-473.33,0.0002616,2]
[422084122,1778559042000,-152.0,0.00026194,7]
[422084133,1778559042000,-2649.45,0.00026254,7]
[422084101,1778559042000,-923.92,0.00025786,2]
[422084130,1778559042000,-189.48,0.00026227,7]
[422084125,1778559042000,-284.23,0.00026205,7]
[422084111,1778559042000,-156.76,0.00026102,2]
[422084098,1778559042000,-185.26,0.00025786,2]
[422084092,1778559042000,-774.49450725,0.000255,2]
[422084091,1778559042000,-166.66,0.00025452,2]
[422084070,1778559042000,-267.08582342,0.0002484,2]
[422084069,1778559042000,-500.0,0.0002476,2]
[422084067,1778559042000,-183.71205536,0.00024721,2]
[422084068,1778559042000,-615.0043839,0.0002476,2]
[422084126,1778559042000,-152.0,0.00026213,7]
[422084073,1778559042000,-160.0,0.00024981,2]
[422084071,1778559042000,-284.23,0.00024879,7]
[422084074,1778559042000,-214.86625456,0.00024981,2]
[422084077,1778559042000,-819.15617726,0.00025,2]
[422084078,1778559042000,-250.21923189,0.00025,2]
[422084076,1778559042000,-431.53202889,0.00025,2]
[422084083,1778559042000,-166.66,0.00025169,30]
[422084082,1778559042000,-167.96,0.00025114,7]
[422084097,1778559042000,-284.23,0.00025763,7]
[422084080,1778559042000,-166.25,0.00025114,7]
[422084081,1778559042000,-166.78,0.00025114,7]
[422084075,1778559042000,-774.49450725,0.00025,2]
[422084084,1778559042000,-774.49450725,0.000252,2]
[422084095,1778559042000,-477.88,0.00025612,2]
[422084085,1778559042000,-175.59,0.00025236,2]
[422084094,1778559042000,-184.7000802,0.00025549,11]
[422084093,1778559042000,-284.23,0.00025542,7]
[422084096,1778559042000,-774.49450725,0.000257,2]
[422084087,1778559042000,-1000.0,0.00025308,2]
[422084088,1778559042000,-284.23,0.00025321,2]
[422084086,1778559042000,-1388.73166699,0.00025268,2]
[422084089,1778559042000,-1436.09,0.00025327,2]
[422084090,1778559042000,-477.88,0.00025338,2]
[422084079,1778559042000,-284.23,0.000251,2]
[422084072,1778559042000,-208.2157166,0.00024981,2]
[422084124,1778559042000,-2649.45,0.00026201,7]
[422084128,1778559042000,-156.76,0.0002622,7]
[422084164,1778559042000,-2649.45,0.00026468,2]
[422084161,1778559042000,-2648.49,0.00026441,2]
[422084166,1778559042000,-2649.45,0.00026495,7]
[422084163,1778559042000,-156.76,0.00026457,2]
[422084162,1778559042000,-155.66,0.00026457,2]
[422084167,1778559042000,-2648.49,0.00026495,7]
[422084169,1778559042000,-189.48,0.00026521,7]
[422084168,1778559042000,-782.53,0.000265,7]
[422084171,1778559042000,-2648.49,0.00026521,7]
[422084173,1778559042000,-2649.45,0.00026548,2]
[422084176,1778559042000,-155.68,0.00026575,7]
[422084182,1778559042000,-189.48,0.00026717,2]
[422084179,1778559042000,-2648.65,0.00026575,7]
[422084165,1778559042000,-2648.49,0.00026468,2]
[422084178,1778559042000,-156.79,0.00026575,7]
[422084172,1778559042000,-600.0,0.00026528,2]
[422084174,1778559042000,-2648.49,0.00026548,2]
[422084180,1778559042000,-189.48,0.00026619,7]
[422084175,1778559042000,-9637.63084045,0.00026567,2]
[422084177,1778559042000,-2649.49,0.00026575,7]
[422084184,1778559042000,-189.48,0.00026815,7]
[422084183,1778559042000,-1058.25,0.000268,2]
[422084190,1778559042000,-189.48,0.00026913,2]
[422084188,1778559042000,-150.0,0.00026849,2]
[422084132,1778559042000,-2649.45,0.00026228,2]
[422084187,1778559042000,-1000.0,0.00026821,2]
[422084186,1778559042000,-1002.10346774,0.00026821,2]
[422084189,1778559042000,-284.23,0.00026868,7]
[422084181,1778559042000,-284.23,0.00026647,2]
[422084159,1778559042000,-600.0,0.00026437,2]
[422084185,1778559042000,-313.6251751,0.00026821,2]
[422084160,1778559042000,-2649.45,0.00026441,2]
[422084170,1778559042000,-2649.45,0.00026521,7]
[422084131,1778559042000,-2648.49,0.00026227,2]
[422084129,1778559042000,-155.66,0.00026221,7]
[422084135,1778559042000,-289.55339026,0.00026273,2]
[422084145,1778559042000,-2648.49,0.00026334,7]
[422084134,1778559042000,-2648.49,0.00026254,7]
[422084137,1778559042000,-500.0,0.00026273,2]
[422084143,1778559042000,-2649.45,0.00026308,2]
[422084138,1778559042000,-500.0,0.00026273,2]
[422084141,1778559042000,-646.5,0.00026296,2]
[422084136,1778559042000,-500.0,0.00026273,2]
[422084139,1778559042000,-2649.45,0.00026281,2]
[422084144,1778559042000,-189.48,0.00026325,2]
[422084140,1778559042000,-2648.49,0.00026281,2]
[422084127,1778559042000,-166.66,0.00026217,2]
[422084146,1778559042000,-2649.45,0.00026335,7]
[422084142,1778559042000,-2648.49,0.00026307,2]
[422084152,1778559042000,-2649.45,0.00026388,2]
[422084153,1778559042000,-2648.49,0.00026388,2]
[422084158,1778559042000,-284.23,0.00026426,2]
[422084156,1778559042000,-2649.45,0.00026415,7]
[422084157,1778559042000,-189.48,0.00026423,2]
[422084154,1778559042000,-2000.0,0.00026404,2]
[422084150,1778559042000,-2649.45,0.00026361,7]
[422084155,1778559042000,-2648.49,0.00026414,7]
[422084147,1778559042000,-156.76,0.00026338,30]
[422084148,1778559042000,-155.66,0.00026339,30]
[422084151,1778559042000,-2648.49,0.00026361,7]
[422084149,1778559042000,-600.0,0.00026345,2]
[422084222,1778559043000,-1058.25,0.000277,2]
[422084243,1778559043000,-1058.25,0.000283,30]
[422084225,1778559043000,-500.0,0.000278,7]
[422084224,1778559043000,-189.48,0.00027796,30]
[422084234,1778559043000,-1058.25,0.00028,30]
[422084230,1778559043000,-284.23,0.00027973,2]
[422084242,1778559043000,-2403.79,0.00028295,2]
[422084236,1778559043000,-500.0,0.00028175,5]
[422084235,1778559043000,-267.08582342,0.0002808,2]
[422084237,1778559043000,-503.13665019,0.00028175,5]
[422084232,1778559043000,-189.64,0.00027992,7]
[422084247,1778559043000,-284.23,0.00028636,2]
[422084244,1778559043000,-284.23,0.00028415,30]
[422084240,1778559043000,-782.53,0.000282,7]
[422084238,1778559043000,-150.0,0.00028192,2]
[422084260,1778559043000,-1494.184881,0.00029,2]
[422084245,1778559043000,-1058.25,0.000286,30]
[422084192,1778559043000,-166.66,0.00026981,2]
[422084258,1778559043000,-284.27,0.00028858,7]
[422084256,1778559043000,-500.69433434,0.00028792,17]
[422084261,1778559043000,-243.75,0.00029507,120]
[422084262,1778559043000,-150.0,0.00029601,2]
[422084221,1778559043000,-189.48,0.00027698,7]
[422084241,1778559043000,-646.5,0.00028267,2]
[422084219,1778559043000,-214.86625456,0.00027579,30]
[422084213,1778559043000,-2922.29,0.000274,14]
[422084220,1778559043000,-189.48,0.00027599,2]